fUSD/lending_fUSD_20240105
["ID","MTS","AMOUNT","RATE_DAILY","PERIOD"]
[310324964,1704473472852,-500.0,0.00030958,2]
[310324965,1704473472861,-500.0,0.00030958,2]
[310324966,1704473472873,-1275.01,0.00030958,2]
[310324967,1704473472883,-629.64596696,0.00030958,2]
[310324968,1704473472893,-500.0,0.00030958,2]
[310324969,1704473472905,-500.0,0.00030958,2]
[310324970,1704473472918,-500.0,0.00030958,2]
[310324971,1704473472927,-500.0,0.00030958,2]
[310324972,1704473472938,-500.0,0.00030958,2]
[310324973,1704473472947,-500.0,0.00030958,2]
[310324974,1704473472957,-500.0,0.00030958,2]
[310324975,1704473472967,-500.0,0.00030958,2]
[310324976,1704473472977,-500.0,0.00030958,2]
[310324977,1704473472990,-500.0,0.00030958,2]
[310324978,1704473473001,-500.0,0.00030958,2]
[310324979,1704473473010,-500.0,0.00030958,2]
[310324980,1704473473028,-500.0,0.00030958,2]
[310324981,1704473473038,-500.0,0.00030958,2]
[310324982,1704473473050,-500.0,0.00030958,2]
[310324983,1704473473063,-500.0,0.00030958,2]
[310324984,1704473473073,-500.0,0.00030958,2]
[310324985,1704473473083,-843.96,0.00030958,2]
[310324986,1704473473094,-500.0,0.00030958,2]
[310324987,1704473473104,-500.0,0.00030958,2]
[310324988,1704473473113,-500.0,0.00030958,2]
[310324989,1704473473123,-500.0,0.00030958,2]
[310324990,1704473473132,-500.0,0.00030958,2]
[310324991,1704473473141,-500.0,0.00030958,2]
[310324992,1704473473161,-500.0,0.00030958,2]
[310324993,1704473473171,-500.0,0.00030958,2]
[310324994,1704473473181,-207.89,0.00030958,2]
[310324995,1704473473191,-500.0,0.00030958,2]
[310324996,1704473473200,-500.0,0.00030958,2]
[310324997,1704473473209,-500.0,0.00030958,2]
[310324998,1704473473219,-500.0,0.00030958,2]
[310324999,1704473473230,-500.0,0.00030958,2]
[310325000,1704473473240,-500.0,0.00030958,2]
[310325001,1704473473252,-500.0,0.00030958,2]
[310325002,1704473473262,-500.0,0.00030958,2]
[310325003,1704473473272,-807.23,0.00030958,2]
[310325004,1704473473282,-500.0,0.00030958,2]
[310325005,1704473473291,-500.0,0.00030958,2]
[310325006,1704473473301,-500.0,0.00030958,2]
[310325007,1704473473311,-549.80571065,0.00030958,2]
[310325008,1704473473322,-500.0,0.00030958,2]
[310325009,1704473473331,-500.0,0.00030958,2]
[310325010,1704473473342,-500.0,0.00030958,2]
[310325011,1704473473351,-361.07675733,0.00030958,2]
[310325012,1704473473362,-500.0,0.00030958,2]
[310325013,1704473473372,-500.0,0.00030958,2]
[310325014,1704473473382,-500.0,0.00030958,2]
[310325015,1704473473392,-500.0,0.00030958,2]
[310325016,1704473473403,-152.39045401,0.00030958,2]
[310325017,1704473473418,-500.0,0.00030958,2]
[310325018,1704473473428,-500.0,0.00030958,2]
[310325019,1704473473444,-500.0,0.00030958,2]
[310325020,1704473473455,-503.54258095,0.00030958,2]
[310325021,1704473473465,-721.09,0.00030958,2]
[310325022,1704473473480,-295.864562,0.00030958,2]
[310325023,1704473473491,-500.0,0.00030958,2]
[310325024,1704473473504,-500.0,0.00030958,2]
[310325025,1704473473516,-500.0,0.00030958,2]
[310325026,1704473473526,-500.0,0.00030958,2]
[310325027,1704473473536,-500.0,0.00030958,2]
[310325028,1704473473547,-238.11720106,0.00030958,2]
[310325029,1704473473558,-354.62776365,0.00030958,2]
[310325030,1704473473568,-500.0,0.00030958,2]
[310325031,1704473473584,-500.0,0.00030958,2]
[310325032,1704473473594,-500.0,0.00030958,2]
[310325033,1704473473604,-500.0,0.00030958,2]
[310325034,1704473473613,-500.0,0.00030958,2]
[310325035,1704473473623,-500.0,0.00030958,2]
[310325036,1704473473633,-500.0,0.00030958,2]
[310325037,1704473473644,-500.0,0.00030958,2]
[310325038,1704473473653,-500.0,0.00030958,2]
[310325039,1704473473664,-529.63621268,0.00030958,2]
[310325040,1704473473674,-500.0,0.00030958,2]
[310325041,1704473473683,-500.0,0.00030958,2]
[310325042,1704473473693,-593.3,0.00030958,2]
[310325043,1704473473703,-500.0,0.00030958,2]
[310325044,1704473473713,-500.0,0.00030958,2]
[310325045,1704473473723,-500.0,0.00030958,2]
[310325046,1704473473733,-500.0,0.00030958,2]
[310325047,1704473473744,-500.0,0.00030958,2]
[310325048,1704473473754,-500.0,0.00030958,2]
[310325049,1704473473763,-12011.09,0.00030958,2]
[310325050,1704473473773,-500.0,0.00030958,2]
[310325051,1704473473783,-500.0,0.00030958,2]
[310325052,1704473473793,-500.0,0.00030958,2]
[310325053,1704473473803,-500.0,0.00030958,2]
[310325054,1704473473813,-1537.14,0.00030958,2]
[310325055,1704473473823,-500.0,0.00030958,2]
[310325056,1704473473833,-1588.31,0.00030958,2]
[310325057,1704473473843,-500.0,0.00030958,2]
[310325058,1704473473853,-5973.26,0.00030958,2]
[310325059,1704473473862,-500.0,0.00030958,2]
[310325060,1704473473878,-562.91,0.00030958,2]
[310325061,1704473474150,-500.0,0.00030958,2]
[310325062,1704473474173,-500.0,0.00030958,2]
[310325063,1704473474184,-500.0,0.00030958,2]
[310325064,1704473474193,-1752.6,0.00030958,2]
[310325065,1704473474203,-500.0,0.00030958,2]
[310325066,1704473474213,-500.0,0.00030958,2]
[310325067,1704473474223,-3119.17,0.00030958,2]
[310325068,1704473474234,-1026.31,0.00030958,2]
[310325069,1704473474243,-616.22250311,0.00030958,2]
[310325070,1704473474253,-1520.28,0.00030958,2]
[310325071,1704473474263,-1346.93,0.00030958,2]
[310325072,1704473474272,-500.0,0.00030958,2]
[310325073,1704473474283,-500.0,0.00030958,2]
[310325074,1704473474293,-500.0,0.00030958,2]
[310325075,1704473474302,-500.0,0.00030958,2]
[310325076,1704473474312,-521.15066125,0.00030958,2]
[310325077,1704473474322,-500.0,0.00030958,2]
[310325078,1704473474331,-500.0,0.00030958,2]
[310325079,1704473474341,-500.0,0.00030958,2]
[310325080,1704473474351,-403.33393606,0.00030958,2]
[310325081,1704473474360,-500.0,0.00030958,2]
[310325082,1704473474370,-500.0,0.00030958,2]
[310325083,1704473474380,-500.0,0.00030958,2]
[310325084,1704473474389,-500.0,0.00030958,2]
[310325085,1704473474399,-621.93,0.00030958,2]
[310325086,1704473474409,-500.0,0.00030958,2]
[310325087,1704473474418,-500.0,0.00030958,2]
[310325088,1704473474429,-2085.78,0.00030958,2]
[310325089,1704473474438,-500.0,0.00030958,2]
[310325090,1704473474448,-871.85,0.00030958,2]
[310325091,1704473474458,-522.5,0.00030958,2]
[310325092,1704473474468,-790.33,0.00030958,2]
[310325093,1704473474478,-651.26,0.00030958,2]
[310325094,1704473474488,-500.0,0.00030958,2]
[310325095,1704473474500,-500.0,0.00030958,2]
[310325096,1704473474510,-254.02998362,0.00030958,2]
[310325097,1704473474520,-500.0,0.00030958,2]
[310325098,1704473474530,-500.0,0.00030958,2]
[310325099,1704473474540,-500.0,0.00030958,2]
[310325100,1704473474550,-1658.28,0.00030958,2]
[310325101,1704473474560,-2545.82,0.00030958,2]
[310325102,1704473474570,-500.0,0.00030958,2]
[310325103,1704473474579,-2368.93,0.00030958,2]
[310325104,1704473474590,-5035.78,0.00030958,2]
[310325105,1704473474599,-500.0,0.00030958,2]
[310325106,1704473474609,-500.0,0.00030958,2]
[310325107,1704473474619,-500.0,0.00030958,2]
[310325108,1704473474629,-500.0,0.00030958,2]
[310325109,1704473474639,-500.0,0.00030958,2]
[310325110,1704473474649,-1615.12,0.00030958,2]
[310325111,1704473474659,-3964.99,0.00030958,2]
[310325112,1704473474669,-500.0,0.00030958,2]
[310325113,1704473474679,-855.65,0.00030958,2]
[310325114,1704473474689,-500.0,0.00030958,2]
[310325115,1704473474700,-500.0,0.00030958,2]
[310325116,1704473474710,-900.42,0.00030958,2]
[310325117,1704473474720,-500.0,0.00030958,2]
[310325118,1704473474730,-527.61,0.00030958,2]
[310325119,1704473474740,-500.0,0.00030958,2]
[310325120,1704473474752,-500.0,0.00030958,2]
[310325121,1704473474762,-3932.79,0.00030958,2]
[310325122,1704473474771,-15880.58,0.00030958,2]
[310325123,1704473474781,-630.59,0.00030958,2]
[310325124,1704473474791,-500.0,0.00030958,2]
[310325125,1704473474801,-2821.0,0.00030958,2]
[310325126,1704473474811,-500.0,0.00030958,2]
[310325127,1704473474820,-500.0,0.00030958,2]
[310325128,1704473474829,-612.47107854,0.00030958,2]
[310325129,1704473474839,-500.0,0.00030958,2]
[310325130,1704473474849,-500.0,0.00030958,2]
[310325131,1704473474859,-500.0,0.00030958,2]
[310325132,1704473474872,-1090.66,0.00030958,2]
[310325133,1704473474883,-387.79697844,0.00030958,2]
[310325134,1704473474893,-500.0,0.00030958,2]
[310325135,1704473474902,-500.0,0.00030958,2]
[310325136,1704473474913,-500.0,0.00030958,2]
[310325137,1704473474923,-500.0,0.00030958,2]
[310325138,1704473474933,-1511.19,0.00030958,2]
[310325139,1704473474942,-500.0,0.00030958,2]
[310325140,1704473474953,-668.86,0.00030958,2]
[310325141,1704473474963,-500.0,0.00030958,2]
[310325142,1704473474973,-500.0,0.00030958,2]
[310325143,1704473474983,-1950.6,0.00030958,2]
[310325144,1704473474993,-527.49,0.00030958,2]
[310325145,1704473475004,-7990.73,0.00030958,2]
[310325146,1704473475014,-500.0,0.00030958,2]
[310325147,1704473475024,-500.0,0.00030958,2]
[310325148,1704473475034,-2431.79,0.00030958,2]
[310325149,1704473475044,-500.0,0.00030958,2]
[310325150,1704473475054,-500.0,0.00030958,2]
[310325151,1704473475064,-1509.04,0.00030958,2]
[310325152,1704473475074,-500.0,0.00030958,2]
[310325153,1704473475085,-500.0,0.00030958,2]
[310325154,1704473475094,-752.06,0.00030958,2]
[310325155,1704473475104,-500.0,0.00030958,2]
[310325156,1704473475117,-500.0,0.00030958,2]
[310325157,1704473475127,-555.27,0.00030958,2]
[310325158,1704473475137,-500.0,0.00030958,2]
[310325159,1704473475151,-6614.78,0.00030958,2]
[310325160,1704473475161,-500.0,0.00030958,2]
[310325161,1704473475171,-500.0,0.00030958,2]
[310325162,1704473475195,-1289.91,0.00030958,2]
[310325163,1704473475209,-500.0,0.00030958,2]
[310325164,1704473475229,-1136.89,0.00030958,2]
[310325165,1704473475242,-524.0790643,0.00030958,2]
[310325166,1704473475262,-646.07,0.00030958,2]
[310325167,1704473475273,-500.0,0.00030958,2]
[310325168,1704473475301,-500.0,0.00030958,2]
[310325169,1704473475311,-500.0,0.00030958,2]
[310325170,1704473475331,-588.45,0.00030958,2]
[310325171,1704473475344,-1154.77,0.00030958,2]
[310325172,1704473475359,-500.0,0.00030958,2]
[310325173,1704473475371,-500.0,0.00030958,2]
[310325174,1704473475382,-1148.85,0.00030958,2]
[310325175,1704473475392,-500.0,0.00030958,2]
[310325176,1704473475403,-500.0,0.00030958,2]
[310325177,1704473475413,-500.0,0.00030958,2]
[310325178,1704473475424,-500.0,0.00030958,2]
[310325179,1704473475434,-864.89,0.00030958,2]
[310325180,1704473475445,-500.0,0.00030958,2]
[310325181,1704473475455,-746.81,0.00030958,2]
[310325182,1704473475465,-500.0,0.00030958,2]
[310325183,1704473475476,-1086.86,0.00030958,2]
[310325184,1704473475486,-1747.09,0.00030958,2]
[310325185,1704473475498,-500.0,0.00030958,2]
[310325186,1704473475508,-585.14,0.00030958,2]
[310325187,1704473475518,-500.0,0.00030958,2]
[310325188,1704473475528,-500.0,0.00030958,2]
[310325189,1704473475538,-500.0,0.00030958,2]
[310325190,1704473475548,-500.0,0.00030958,2]
[310325191,1704473475559,-500.0,0.00030958,2]
[310325192,1704473475569,-500.0,0.00030958,2]
[310325193,1704473475580,-500.0,0.00030958,2]
[310325194,1704473475590,-500.0,0.00030958,2]
[310325195,1704473475601,-500.0,0.00030958,2]
[310325196,1704473475611,-680.71,0.00030958,2]
[310325197,1704473475621,-898.8,0.00030958,2]
[310325198,1704473475632,-500.0,0.00030958,2]
[310325199,1704473475643,-581.39,0.00030958,2]
[310325200,1704473475654,-500.0,0.00030958,2]
[310325201,1704473475664,-2794.23,0.00030958,2]
[310325202,1704473475674,-2835.72,0.00030958,2]
[310325203,1704473475684,-2858.86,0.00030958,2]
[310325204,1704473475695,-500.0,0.00030958,2]
[310325205,1704473475705,-500.0,0.00030958,2]
[310325206,1704473475715,-500.0,0.00030958,2]
[310325207,1704473475729,-160.35283307,0.00030958,2]
[310325208,1704473475740,-533.41,0.00030958,2]
[310325209,1704473475753,-500.0,0.00030958,2]
[310325210,1704473475762,-500.0,0.00030958,2]
[310325211,1704473475772,-2517.57,0.00030958,2]
[310325212,1704473475783,-1374.42,0.00030958,2]
[310325213,1704473475794,-500.0,0.00030958,2]
[310325214,1704473475804,-500.0,0.00030958,2]
[310325215,1704473475815,-500.0,0.00030958,2]
[310325216,1704473475827,-2755.52,0.00030958,2]
[310325217,1704473475838,-2511.86,0.00030958,2]
[310325218,1704473475848,-500.0,0.00030958,2]
[310325219,1704473475858,-500.0,0.00030958,2]
[310325220,1704473475868,-1222.0,0.00030958,2]
[310325221,1704473475884,-500.0,0.00030958,2]
[310325222,1704473475895,-814.18,0.00030958,2]
[310325223,1704473475907,-4236.93,0.00030958,2]
[310325224,1704473475917,-500.0,0.00030958,2]
[310325225,1704473475927,-500.0,0.00030958,2]
[310325226,1704473475936,-2392.95,0.00030958,2]
[310325227,1704473475946,-500.0,0.00030958,2]
[310325228,1704473475957,-1842.01,0.00030958,2]
[310325229,1704473475967,-645.88,0.00030958,2]
[310325230,1704473475978,-804.31,0.00030958,2]
[310325231,1704473475987,-500.0,0.00030958,2]
[310325232,1704473475998,-500.0,0.00030958,2]
[310325233,1704473476008,-780.05,0.00030958,2]
[310325234,1704473476018,-20128.17,0.00030958,2]
[310325235,1704473476027,-500.0,0.00030958,2]
[310325236,1704473476037,-618.16,0.00030958,2]
[310325237,1704473476047,-500.0,0.00030958,2]
[310325238,1704473476057,-500.0,0.00030958,2]
[310325239,1704473476067,-500.0,0.00030958,2]
[310325240,1704473476078,-510.82,0.00030958,2]
[310325241,1704473476088,-500.0,0.00030958,2]
[310325242,1704473476098,-500.0,0.00030958,2]
[310325243,1704473476108,-500.0,0.00030958,2]
[310325244,1704473476119,-1056.97,0.00030958,2]
[310325245,1704473476129,-1483.19,0.00030958,2]
[310325246,1704473476139,-500.0,0.00030958,2]
[310325247,1704473476149,-500.0,0.00030958,2]
[310325248,1704473476161,-500.0,0.00030958,2]
[310325249,1704473476171,-1304.64,0.00030958,2]
[310325250,1704473476182,-500.0,0.00030958,2]
[310325251,1704473476192,-500.0,0.00030958,2]
[310325252,1704473476202,-500.0,0.00030958,2]
[310325253,1704473476212,-3583.58,0.00030958,2]
[310325254,1704473476222,-759.04,0.00030958,2]
[310325255,1704473476232,-3227.18,0.00030958,2]
[310325256,1704473476242,-1800.48,0.00030958,2]
[310325257,1704473476254,-542.96033035,0.00030958,2]
[310325258,1704473476265,-768.62,0.00030958,2]
[310325259,1704473476275,-500.0,0.00030958,2]
[310325260,1704473476285,-500.0,0.00030958,2]
[310325261,1704473476295,-500.0,0.00030958,2]
[310325262,1704473476305,-2756.04,0.00030958,2]
[310325263,1704473476314,-2834.13,0.00030958,2]
[310325264,1704473476324,-1051.18,0.00030958,2]
[310325265,1704473476334,-2515.3,0.00030958,2]
[310325266,1704473476344,-500.0,0.00030958,2]
[310325267,1704473476354,-5299.03,0.00030958,2]
[310325268,1704473476363,-500.0,0.00030958,2]
[310325269,1704473476373,-664.57,0.00030958,2]
[310325270,1704473476383,-537.2,0.00030958,2]
[310325271,1704473476394,-500.0,0.00030958,2]
[310325272,1704473476403,-500.0,0.00030958,2]
[310325273,1704473476413,-512.71,0.00030958,2]
[310325274,1704473476424,-500.0,0.00030958,2]
[310325275,1704473476433,-500.0,0.00030958,2]
[310325276,1704473476443,-500.0,0.00030958,2]
[310325277,1704473476453,-500.0,0.00030958,2]
[310325278,1704473476463,-500.0,0.00030958,2]
[310325279,1704473476473,-1696.0,0.00030958,2]
[310325280,1704473476483,-500.0,0.00030958,2]
[310325281,1704473476492,-3340.06,0.00030958,2]
[310325282,1704473476504,-2490.22,0.00030958,2]
[310325283,1704473476514,-1285.5,0.00030958,2]
[310325284,1704473476523,-500.0,0.00030958,2]
[310325285,1704473476534,-848.87,0.00030958,2]
[310325286,1704473476543,-500.0,0.00030958,2]
[310325287,1704473476553,-500.0,0.00030958,2]
[310325288,1704473476562,-554.12,0.00030958,2]
[310325289,1704473476572,-606.02,0.00030958,2]
[310325290,1704473476582,-11508.87,0.00030958,2]
[310325291,1704473476592,-500.0,0.00030958,2]
[310325292,1704473476601,-1649.63,0.00030958,2]
[310325293,1704473476611,-500.0,0.00030958,2]
[310325294,1704473476621,-1188.82,0.00030958,2]
[310325295,1704473476632,-500.0,0.00030958,2]
[310325296,1704473476642,-500.0,0.00030958,2]
[310325297,1704473476652,-687.41,0.00030958,2]
[310325298,1704473476662,-1161.09,0.00030958,2]
[310325299,1704473476672,-500.0,0.00030958,2]
[310325300,1704473476682,-994.25,0.00030958,2]
[310325301,1704473476692,-500.0,0.00030958,2]
[310325302,1704473476701,-3783.36,0.00030958,2]
[310325303,1704473476772,-4030.69,0.00030958,2]
[310325304,1704473476782,-500.0,0.00030958,2]
[310325305,1704473476792,-907.04,0.00030958,2]
[310325306,1704473476802,-500.0,0.00030958,2]
[310325307,1704473476811,-500.0,0.00030958,2]
[310325308,1704473476820,-2006.85,0.00030958,2]
[310325309,1704473476830,-871.44,0.00030958,2]
[310325310,1704473476839,-321.84335234,0.00030958,2]
[310325311,1704473476848,-500.0,0.00030958,2]
[310325312,1704473476858,-500.0,0.00030958,2]
[310325313,1704473476868,-8452.87,0.00030958,2]
[310325314,1704473476882,-1134.28,0.00030958,2]
[310325315,1704473476892,-500.0,0.00030958,2]
[310325316,1704473476901,-500.0,0.00030958,2]
[310325317,1704473476912,-566.66,0.00030958,2]
[310325318,1704473476921,-1157.92,0.00030958,2]
[310325319,1704473476930,-500.0,0.00030958,2]
[310325320,1704473476940,-500.0,0.00030958,2]
[310325321,1704473476949,-500.0,0.00030958,2]
[310325322,1704473476958,-500.0,0.00030958,2]
[310325323,1704473476967,-512.07,0.00030958,2]
[310325324,1704473476977,-531.68245466,0.00030958,2]
[310325325,1704473476986,-1638.59,0.00030958,2]
[310325326,1704473476995,-1195.76,0.00030958,2]
[310325327,1704473477005,-1402.48,0.00030958,2]
[310325328,1704473477015,-500.0,0.00030958,2]
[310325329,1704473477026,-7740.43,0.00030958,2]
[310325330,1704473477035,-150.60602903,0.00030958,2]
[310325331,1704473477045,-500.0,0.00030958,2]
[310325332,1704473477054,-500.0,0.00030958,2]
[310325333,1704473477064,-500.0,0.00030958,2]
[310325334,1704473477074,-500.0,0.00030958,2]
[310325335,1704473477085,-504.28,0.00030958,2]
[310325336,1704473477095,-500.0,0.00030958,2]
[310325337,1704473477104,-1600.27,0.00030958,2]
[310325338,1704473477113,-500.0,0.00030958,2]
[310325339,1704473477123,-500.0,0.00030958,2]
[310325340,1704473477131,-2394.98,0.00030958,2]
[310325341,1704473477141,-500.0,0.00030958,2]
[310325342,1704473477149,-500.0,0.00030958,2]
[310325343,1704473477158,-500.0,0.00030958,2]
[310325344,1704473477168,-1206.82,0.00030958,2]
[310325345,1704473477177,-500.0,0.00030958,2]
[310325346,1704473477187,-500.0,0.00030958,2]
[310325347,1704473477196,-1116.25,0.00030958,2]
[310325348,1704473477206,-500.0,0.00030958,2]
[310325349,1704473477216,-1341.2,0.00030958,2]
[310325350,1704473477226,-1246.52,0.00030958,2]
[310325351,1704473477236,-597.25773749,0.00030958,2]
[310325352,1704473477246,-500.0,0.00030958,2]
[310325353,1704473477255,-500.0,0.00030958,2]
[310325354,1704473477265,-500.0,0.00030958,2]
[310325355,1704473477274,-500.0,0.00030958,2]
[310325356,1704473477284,-884.54,0.00030958,2]
[310325357,1704473477294,-500.0,0.00030958,2]
[310325358,1704473477303,-3145.82,0.00030958,2]
[310325359,1704473477312,-834.29,0.00030958,2]
[310325360,1704473477323,-1393.24,0.00030958,2]
[310325361,1704473477333,-1151.41,0.00030958,2]
[310325362,1704473477342,-500.0,0.00030958,2]
[310325363,1704473477352,-500.0,0.00030958,2]
[310325364,1704473477361,-500.0,0.00030958,2]
[310325365,1704473477372,-500.0,0.00030958,2]
[310325366,1704473477383,-542.06,0.00030958,2]
[310325367,1704473477393,-790.38,0.00030958,2]
[310325368,1704473477403,-500.0,0.00030958,2]
[310325369,1704473477413,-501.35,0.00030958,2]
[310325370,1704473477423,-1526.32,0.00030958,2]
[310325371,1704473477434,-500.0,0.00030958,2]
[310325372,1704473477444,-757.34,0.00030958,2]
[310325373,1704473477455,-500.0,0.00030958,2]
[310325374,1704473477464,-500.0,0.00030958,2]
[310325375,1704473477474,-709.53,0.00030958,2]
[310325376,1704473477484,-277.16,0.00030974,2]
[310325377,1704473477496,-3000.0,0.00031,2]
[310325378,1704473477506,-153.84,0.0003105,2]
[310325379,1704473477516,-277.16,0.00031124,2]
[310325380,1704473477526,-380.83098948,0.00031132,2]
[310325381,1704473477535,-693.0,0.000312,2]
[310325382,1704473477545,-87637.0328874,0.00031211,2]
[310325383,1704473477555,-175.84259704,0.00031227,5]
[310325384,1704473477564,-500.0,0.00031231,2]
[310325385,1704473477574,-500.0,0.00031232,2]
[310325386,1704473477584,-500.0,0.00031232,2]
[310325387,1704473477594,-500.0,0.00031232,2]
[310325388,1704473477604,-537.31924158,0.00031232,2]
[310325389,1704473477614,-500.0,0.00031232,2]
[310325390,1704473477623,-500.0,0.00031232,2]
[310325391,1704473477632,-500.0,0.00031232,2]
[310325392,1704473477641,-500.0,0.00031232,2]
[310325393,1704473477651,-611.83153906,0.00031232,2]
[310325394,1704473477661,-500.0,0.00031232,2]
[310325395,1704473477670,-500.0,0.00031232,2]
[310325396,1704473477680,-500.0,0.00031232,2]
[310325397,1704473477689,-500.0,0.00031232,2]
[310325398,1704473477698,-500.0,0.00031232,2]
[310325399,1704473477708,-535.9929959,0.00031232,2]
[310325400,1704473477717,-500.0,0.00031232,2]
[310325401,1704473477727,-500.0,0.00031232,2]
[310325402,1704473477736,-500.0,0.00031232,2]
[310325403,1704473477747,-500.0,0.00031232,2]
[310325404,1704473477757,-679.76,0.00031232,2]
[310325405,1704473477766,-500.0,0.00031232,2]
[310325406,1704473477776,-500.0,0.00031232,2]
[310325407,1704473477785,-500.0,0.00031232,2]
[310325408,1704473477795,-500.0,0.00031232,2]
[310325409,1704473477805,-211.72074392,0.00031232,2]
[310325410,1704473477814,-500.0,0.00031232,2]
[310325411,1704473477823,-500.0,0.00031232,2]
[310325412,1704473477833,-500.0,0.00031232,2]
[310325413,1704473477843,-500.0,0.00031232,2]
[310325414,1704473477852,-500.0,0.00031232,2]
[310325415,1704473477862,-437.99198637,0.00031232,2]
[310325416,1704473477875,-500.0,0.00031232,2]
[310325417,1704473477901,-500.0,0.00031232,2]
[310325418,1704473477911,-500.0,0.00031232,2]
[310325419,1704473477921,-500.0,0.00031232,2]
[310325420,1704473477930,-500.0,0.00031232,2]
[310325421,1704473477940,-500.0,0.00031232,2]
[310325422,1704473477950,-500.0,0.00031232,2]
[310325423,1704473477959,-500.0,0.00031232,2]
[310325424,1704473477969,-500.0,0.00031232,2]
[310325425,1704473477979,-500.0,0.00031232,2]
[310325426,1704473477989,-303.4123907,0.00031232,2]
[310325427,1704473478002,-500.0,0.00031232,2]
[310325428,1704473478013,-500.0,0.00031232,2]
[310325429,1704473478024,-500.0,0.00031232,2]
[310325430,1704473478034,-500.0,0.00031232,2]
[310325431,1704473478045,-500.0,0.00031232,2]
[310325432,1704473478055,-500.0,0.00031232,2]
[310325433,1704473478066,-500.0,0.00031232,2]
[310325434,1704473478076,-500.0,0.00031232,2]
[310325435,1704473478086,-500.0,0.00031232,2]
[310325436,1704473478096,-500.0,0.00031232,2]
[310325437,1704473478106,-500.0,0.00031232,2]
[310325438,1704473478117,-500.0,0.00031232,2]
[310325439,1704473478127,-217.482325,0.00031232,2]
[310325440,1704473478137,-500.0,0.00031232,2]
[310325441,1704473478148,-500.0,0.00031232,2]
[310325442,1704473478159,-500.0,0.00031232,2]
[310325443,1704473478168,-584.56017519,0.00031232,2]
[310325444,1704473478179,-500.0,0.00031232,2]
[310325445,1704473478189,-500.0,0.00031232,2]
[310325446,1704473478199,-500.0,0.00031232,2]
[310325447,1704473478209,-500.0,0.00031232,2]
[310325448,1704473478219,-500.0,0.00031232,2]
[310325449,1704473478229,-500.0,0.00031232,2]
[310325450,1704473478238,-500.0,0.00031232,2]
[310325451,1704473478253,-500.0,0.00031232,2]
[310325452,1704473478263,-165.53565557,0.00031232,2]
[310325453,1704473478273,-500.0,0.00031232,2]
[310325454,1704473478282,-500.0,0.00031232,2]
[310325455,1704473478292,-500.0,0.00031232,2]
[310325456,1704473478303,-174.69422671,0.00031232,2]
[310325457,1704473478315,-500.0,0.00031232,2]
[310325458,1704473478326,-500.0,0.00031232,2]
[310325459,1704473478337,-732.22,0.00031232,2]
[310325460,1704473478348,-500.0,0.00031232,2]
[310325461,1704473478358,-500.0,0.00031232,2]
[310325462,1704473478368,-500.0,0.00031232,2]
[310325463,1704473478378,-500.0,0.00031232,2]